bitfinex/quotes_ETHUSD_20260109
["timestamp","ask_amount","ask_price","bid_price","bid_amount"]
[1767990365721,3.49481369,3086.6,3085.6,0.92696296]
[1767990365892,4.27093666,3086.6,3085.7,0.92415712]
[1767990366092,1.03112297,3086.6,3085.7,0.92415712]
[1767990366316,0.255,3086.6,3085.7,0.92415712]
[1767990366503,1.25254188,3086.6,3085.7,0.92415712]
[1767990366688,4.49237697,3086.6,3085.7,0.92415712]
[1767990366894,4.49237697,3086.6,3085.6,0.00280584]
[1767990366895,0.99754188,3086.3,3085.6,0.00280584]
[1767990367096,1.02670632,3086.3,3085.6,0.00280584]
[1767990367309,0.99754188,3086.2,3085.6,0.00280584]
[1767990368231,0.99754188,3086.2,3085.9,0.002]
[1767990368414,0.001,3086.1,3085.9,0.002]
[1767990368731,0.001,3086.1,3085.9,0.92615712]
[1767990370518,0.001,3086.1,3085.9,0.002]
[1767990371365,0.001,3086.1,3086.0,0.92415712]
[1767990371510,4.23789955,3086.9,3086.0,0.92415712]
[1767990371835,0.28416444,3086.8,3086.0,0.92415712]
[1767990372134,0.28416444,3086.8,3086.2,0.92415712]
[1767990375716,0.02916444,3086.8,3086.2,0.92415712]
[1767990376014,0.28416444,3086.8,3086.2,0.92415712]
[1767990377043,0.0008056,3086.9,3086.3,0.92415712]
[1767990378519,0.0008056,3086.9,3086.5,0.92415712]
[1767990379213,0.99834748,3086.9,3086.1,0.255]
[1767990379424,0.99834748,3086.9,3086.1,1.62131107]
[1767990379744,0.99834748,3086.9,3086.1,3.93744655]
[1767990379945,0.99834748,3086.9,3086.1,0.69715395]
[1767990380244,0.99834748,3086.9,3086.2,3.24021099]
[1767990380245,0.99754188,3086.5,3086.2,3.24021099]
[1767990380549,0.99754188,3086.5,3086.1,3.68243081]
[1767990380939,0.99754188,3086.5,3086.2,0.36824308]
[1767990381514,0.99754188,3086.5,3085.9,3.49751451]
[1767990381515,0.99754188,3086.5,3085.9,0.257]
[1767990382011,0.99754188,3086.1,3085.6,0.00280584]
[1767990383738,0.99754188,3086.3,3085.6,0.00280584]
[1767990384733,0.99754188,3086.3,3085.6,3.24366661]
[1767990385846,0.99754188,3086.3,3085.6,7.82566687]
[1767990386664,0.99754188,3086.3,3085.6,4.5848061]
[1767990386847,1.25254188,3086.5,3085.7,0.92415712]
[1767990387053,4.49247185,3086.5,3085.7,0.92415712]
[1767990387257,1.02670632,3086.4,3085.6,0.00280584]
[1767990387437,1.77369851,3086.3,3085.6,0.00280584]
[1767990387649,0.77615663,3086.3,3085.6,4.16780609]
[1767990387834,0.99754188,3086.2,3085.6,0.00280584]
[1767990390595,0.99754188,3086.1,3085.6,0.00280584]
[1767990392578,0.99754188,3086.0,3085.9,0.002]
[1767990392749,1.42424724,3086.0,3085.9,0.002]
[1767990392946,0.99223342,3085.9,3085.5,0.002]
[1767990399872,0.99223342,3085.7,3085.5,0.002]
[1767990400569,0.99223342,3085.7,3085.0,3.24147972]
[1767990401605,0.99223342,3085.7,3084.9,0.255]
[1767990401826,0.99223342,3085.6,3084.9,0.255]
[1767990401968,0.99223342,3085.5,3084.9,3.49658511]
[1767990403312,0.99223342,3085.5,3084.9,3.49657836]
[1767990403512,0.99223342,3085.7,3084.9,4.4824006]
[1767990403815,1.24723342,3085.8,3085.1,3.24138601]
[1767990404020,0.99223342,3085.7,3085.1,3.24138601]
[1767990405024,0.00080584,3086.0,3085.2,0.98582224]
[1767990405244,0.00080584,3086.0,3085.4,0.98582224]
[1767990405521,0.001,3085.6,3085.4,0.98582224]
[1767990406119,0.001,3085.6,3085.5,0.98582224]
[1767990406313,0.00080584,3086.0,3085.6,0.98582224]
[1767990406525,0.00080584,3086.0,3085.5,0.74700239]
[1767990406706,0.00080584,3086.0,3085.5,1.73282463]
[1767990409910,0.00080584,3086.0,3085.5,4.97378461]
[1767990410113,0.00080584,3086.0,3085.5,1.73282463]
[1767990410609,0.00080584,3086.0,3085.5,0.98582224]
[1767990411175,0.00080584,3086.0,3085.3,4.18066092]
[1767990411373,0.00080584,3086.0,3085.4,0.93753179]
[1767990412594,0.00080584,3086.0,3085.3,0.002]
[1767990413106,0.9248278,3086.0,3085.3,0.002]
[1767990414680,0.92402196,3085.9,3085.3,0.002]
[1767990415299,0.9531864,3085.9,3085.3,0.002]
[1767990415475,0.92402196,3085.7,3085.3,0.002]
[1767990416317,0.255,3085.8,3085.3,0.002]
[1767990417487,0.255,3085.8,3085.6,0.002]
[1767990417690,0.001,3085.7,3085.6,0.002]
[1767990420818,0.9541864,3086.6,3085.7,0.93753179]
[1767990420989,0.92402196,3086.5,3085.7,0.93753179]
[1767990421316,1.17902196,3086.5,3085.7,0.93753179]
[1767990421616,0.92402196,3086.5,3085.7,0.93753179]
[1767990421781,3.49582716,3086.6,3085.7,0.93753179]
[1767990421982,4.41984912,3086.6,3085.7,0.93753179]
[1767990422682,0.92402196,3086.5,3085.8,0.41811072]
[1767990423283,0.9531864,3086.5,3085.6,0.00280592]
[1767990424516,0.96127692,3086.2,3085.6,0.00280592]
[1767990425220,0.96127692,3086.1,3085.6,0.00280592]
[1767990425398,0.99044136,3086.1,3085.6,0.00280592]
[1767990425811,0.96127692,3086.0,3085.6,0.00280592]
[1767990430722,0.96127692,3086.0,3085.9,0.002]
[1767990432725,0.96127692,3086.0,3085.6,0.00280592]
[1767990432726,0.96127692,3085.9,3085.6,0.00280592]
[1767990432916,0.96127692,3085.9,3084.8,0.255]
[1767990433119,0.96127692,3085.7,3084.9,3.24151345]
[1767990433315,1.38146968,3085.6,3084.8,0.95780845]
[1767990433529,0.96127692,3085.5,3084.7,1.21280845]
[1767990433734,0.02916444,3085.9,3085.0,0.95980845]
[1767990434031,0.00080592,3086.0,3085.0,0.95980845]
[1767990435802,0.00080592,3086.0,3085.2,0.95780845]
[1767990436122,0.00080592,3086.0,3085.4,0.95780845]
[1767990437133,0.00080592,3086.0,3085.6,0.95780845]
[1767990442638,0.00080592,3086.0,3085.4,4.19884145]
[1767990442842,0.00080592,3086.0,3085.4,0.95780845]
[1767990443021,0.00080592,3086.0,3085.9,0.002]
[1767990448941,0.96127692,3086.5,3085.9,0.002]
[1767990449111,0.255,3086.4,3085.9,0.002]
[1767990449451,0.255,3086.4,3085.4,5.67660592]
[1767990449452,0.96127692,3085.8,3084.8,0.95780845]
[1767990449613,0.96127692,3085.6,3084.7,4.19953754]
[1767990449814,0.96127692,3085.5,3084.7,0.95780845]
[1767990450114,0.67948876,3085.4,3084.7,0.95780845]
[1767990450527,0.67948876,3085.4,3084.7,4.19961025]
[1767990450964,0.67948876,3085.4,3084.7,0.95780845]
[1767990451864,1.64076568,3085.4,3084.7,0.95780845]
[1767990452063,0.96127692,3085.4,3084.7,0.95780845]
[1767990452271,0.96127692,3085.3,3084.6,0.002]
[1767990452416,0.67891937,3085.2,3084.6,0.002]
[1767990452817,2.69598375,3085.2,3084.6,0.002]
[1767990453066,0.67891937,3085.1,3084.6,0.002]
[1767990454233,0.96127692,3085.2,3084.6,0.002]
[1767990454571,9.94179101,3085.4,3084.6,0.002]
[1767990454775,0.6783979,3085.3,3084.6,0.002]
[1767990455455,0.6783979,3085.3,3085.0,0.002]
[1767990455661,1.74040914,3085.3,3085.0,0.002]
[1767990455862,0.6763979,3085.2,3085.0,0.002]
[1767990457172,1.06201124,3085.3,3085.0,0.002]
[1767990463881,1.02411269,3085.4,3085.0,0.002]
[1767990464797,4.26519718,3085.4,3085.0,0.002]
[1767990464985,4.26519718,3085.4,3084.7,0.96857112]
[1767990465398,6.70071861,3085.2,3084.6,0.002]
[1767990465601,6.69871861,3085.2,3084.6,0.002]
[1767990465959,1.02211269,3085.2,3084.6,0.002]
[1767990466988,1.02211269,3085.2,3084.9,0.002]
[1767990467178,1.694901,3085.2,3084.9,0.002]
[1767990468595,0.68928828,3085.6,3084.9,0.97057112]
[1767990468793,0.96163125,3085.5,3084.9,0.97057112]
[1767990468981,1.60331139,3085.4,3084.9,0.002]
[1767990469192,4.16691231,3085.4,3084.9,0.002]
[1767990469706,0.92584043,3085.4,3084.9,0.002]
[1767990470001,4.16691732,3085.4,3084.9,0.002]
[1767990470369,0.92584043,3085.4,3084.9,0.002]
[1767990470884,4.16691732,3085.4,3084.9,0.002]
[1767990471087,0.92584043,3085.3,3084.9,0.002]
[1767990471296,1.60361363,3085.2,3084.6,0.002]
[1767990471482,0.02916444,3085.3,3084.6,0.90547446]
[1767990471683,0.67777921,3085.2,3084.6,0.90547446]
[1767990472706,0.67777921,3085.2,3084.7,0.90347446]
[1767990472870,3.5251983,3085.5,3084.8,0.90347446]
[1767990473203,3.91973679,3085.4,3084.8,0.90347446]
[1767990473405,0.67865719,3085.3,3084.8,0.90347446]
[1767990474207,0.67865719,3085.3,3084.9,0.90347446]
[1767990474415,4.19677063,3085.7,3084.9,0.90347446]
[1767990474579,2.61747077,3085.6,3084.9,0.90347446]
[1767990474778,0.67879269,3085.5,3084.9,0.90347446]
[1767990475785,0.92584043,3085.4,3084.6,0.90547446]
[1767990476104,1.63379756,3085.3,3084.6,0.90547446]
[1767990476403,0.67879269,3085.2,3084.6,0.90547446]
[1767990477210,0.67879269,3085.2,3084.6,4.56259597]
[1767990478091,0.67879269,3085.2,3084.6,1.32070263]
[1767990479194,0.67879269,3085.1,3084.9,0.002]
[1767990479395,0.67879269,3085.0,3084.9,0.002]
[1767990479715,0.67879269,3085.1,3084.9,0.002]
[1767990479916,0.67879269,3085.0,3084.9,0.002]
[1767990480321,0.67879269,3085.1,3084.9,0.002]
[1767990482321,0.67879269,3085.0,3084.9,0.002]
[1767990482790,0.67879269,3085.1,3084.9,0.002]
[1767990482993,0.67879269,3085.0,3084.9,0.002]
[1767990483193,0.67679269,3085.0,3084.9,0.002]
[1767990484230,0.67679269,3085.0,3084.6,0.002]
[1767990484413,4.1584681,3085.2,3084.6,0.002]
[1767990484612,0.91716775,3085.2,3084.6,0.002]
[1767990485808,0.001,3085.2,3084.6,0.99518212]
[1767990486008,0.001,3085.2,3084.6,1.41937762]
[1767990490336,0.001,3085.2,3084.7,0.99318212]
[1767990490631,0.001,3085.2,3084.9,0.002]
[1767990491204,0.94533219,3085.0,3084.5,0.002]
[1767990491429,0.02916444,3085.0,3084.5,0.002]
[1767990492758,0.69145825,3085.0,3084.5,0.002]
[1767990493558,3.93297082,3085.0,3084.5,0.002]
[1767990493857,0.69145825,3085.0,3084.5,0.002]
[1767990495264,0.68010875,3084.9,3084.5,0.002]
[1767990496567,0.68010875,3084.9,3084.5,0.99518212]
[1767990496568,0.67810875,3084.9,3084.5,0.99518212]
[1767990496775,3.27055186,3085.1,3084.5,0.99518212]
[1767990496926,3.27055186,3085.1,3084.5,0.002]
[1767990497134,0.94533219,3084.9,3084.5,0.002]
[1767990497757,1.20033219,3084.9,3084.5,0.002]
[1767990499027,0.28416444,3084.9,3084.5,0.002]
[1767990499238,0.255,3084.9,3084.5,0.002]
[1767990499437,0.255,3084.9,3084.5,0.99518212]
[1767990502369,0.255,3084.9,3084.8,0.002]
[1767990502537,0.68569776,3084.9,3084.5,0.002]
[1767990502738,0.68569776,3084.9,3084.5,0.99518212]
[1767990503071,3.49760844,3084.9,3084.5,0.99518212]
[1767990503665,0.02916444,3084.8,3084.5,0.002]
[1767990504068,0.02916444,3084.8,3084.4,0.0028068]
[1767990504565,3.2709183,3084.8,3084.4,0.0028068]
[1767990504770,4.03938775,3084.8,3084.4,0.0028068]
[1767990506374,0.79763389,3084.8,3084.4,0.0028068]
[1767990507176,4.95551661,3084.8,3084.4,0.0028068]
[1767990507375,0.79763389,3084.8,3084.4,0.0028068]
[1767990508689,0.69010164,3084.7,3084.4,0.0028068]
[1767990510799,1.18864723,3084.7,3084.4,0.0028068]
[1767990510981,1.18864723,3084.7,3084.0,0.99518212]
[1767990510982,0.71926608,3084.6,3084.0,0.99518212]
[1767990511159,0.71926608,3084.6,3084.0,0.002]
[1767990511160,0.91616775,3084.4,3084.0,0.002]
[1767990511355,0.69010164,3084.3,3084.0,0.002]
[1767990512075,0.69010164,3084.3,3083.8,0.99518212]
[1767990512288,0.69010164,3084.2,3083.8,0.99518212]
[1767990512669,3.27129859,3084.4,3083.8,0.99518212]
[1767990512670,0.69010164,3084.1,3083.8,0.99518212]
[1767990512988,0.69010164,3084.0,3083.8,0.99518212]
[1767990513169,3.24223803,3084.3,3083.8,0.002]
[1767990513372,3.93230062,3084.2,3083.8,0.002]
[1767990513583,1.08318653,3084.1,3083.8,0.002]
[1767990513889,0.68995647,3084.0,3083.8,0.002]
[1767990515632,0.39323006,3084.1,3083.8,0.002]
[1767990516198,0.68928834,3084.0,3083.8,0.002]
[1767990516828,0.68928834,3084.0,3083.7,0.002]
[1767990516994,1.12469532,3084.0,3083.5,0.00280456]
[1767990517195,1.12469532,3084.0,3082.9,7.10647883]
[1767990517196,0.97470016,3083.6,3082.9,0.0028036]
[1767990517433,0.97470016,3083.6,3082.5,0.97800926]
[1767990517434,0.02916444,3083.2,3082.5,0.97800926]
[1767990517734,3.272587,3083.2,3082.5,0.97800926]
[1767990518145,0.68885838,3083.1,3082.5,0.97800926]
[1767990518467,4.2181104,3083.2,3082.5,0.97800926]
[1767990518615,0.4217132,3083.1,3082.5,0.97800926]
[1767990518814,0.02916444,3083.0,3082.5,0.97800926]
[1767990519162,0.4217132,3083.1,3082.5,0.00280552]
[1767990519315,0.97470016,3083.2,3082.5,0.00280552]
[1767990519712,0.94553572,3083.1,3082.5,0.00280552]
[1767990520133,0.02916444,3083.0,3082.5,0.00280552]
[1767990520341,0.02916444,3083.0,3082.5,0.97800926]
[1767990521122,0.02916444,3083.0,3082.5,0.00280552]
[1767990521743,0.02916444,3083.0,3082.5,0.97800926]
[1767990521937,0.02916444,3083.0,3082.5,0.00280552]
[1767990522127,0.4538919,3083.0,3082.5,0.00280552]
[1767990523430,0.02916444,3083.0,3082.5,0.97800926]
[1767990525131,0.02916444,3082.8,3082.3,0.002]
[1767990525336,0.02916444,3082.8,3082.2,0.002]
[1767990525337,0.94553572,3082.3,3081.1,1.14424998]
[1767990525546,0.94553572,3082.3,3081.0,0.00083327]
[1767990525547,0.00080648,3081.7,3081.3,0.97520374]
[1767990526682,0.25580648,3081.7,3081.4,0.97520374]
[1767990526826,0.25380852,3081.7,3081.6,0.002]
[1767990527031,0.25380852,3081.7,3081.3,0.9760103]
[1767990527273,0.94553572,3082.3,3081.4,0.97520374]
[1767990527438,4.18974212,3082.5,3081.4,0.97520374]
[1767990527771,4.18974212,3082.5,3081.5,0.03245172]
[1767990527980,0.255,3082.4,3081.6,0.97520374]
[1767990528176,0.02916444,3082.8,3081.7,1.00765336]
[1767990528177,0.94553572,3082.8,3081.7,1.00765336]
[1767990528347,1.88560368,3082.7,3081.7,1.00765336]
[1767990528531,1.20053572,3082.7,3081.7,0.97520374]
[1767990528732,1.20053572,3082.7,3081.7,1.00765336]
[1767990529157,0.255,3082.6,3081.7,1.00765336]
[1767990529435,4.14249664,3082.8,3081.7,1.00765336]
[1767990529634,0.255,3082.7,3081.7,0.97520374]
[1767990529944,1.19890486,3082.7,3081.7,0.97520374]
[1767990531872,4.44289613,3082.7,3081.8,0.95261337]
[1767990533514,0.94390486,3082.6,3081.8,0.95261337]
[1767990533666,0.94390486,3082.6,3081.8,0.74425502]
[1767990533867,0.94390486,3082.5,3081.8,0.74425502]
[1767990534262,0.94390486,3082.7,3081.9,0.95261337]
[1767990534463,0.255,3082.6,3081.9,0.95261337]
[1767990534664,0.255,3082.6,3081.8,7.23396882]
[1767990534665,0.255,3082.5,3082.0,0.95261337]
[1767990534889,0.255,3082.5,3082.1,0.95261337]
[1767990535994,0.00180552,3082.9,3082.2,0.95261337]
[1767990536299,0.25680552,3082.9,3082.2,0.95261337]
[1767990536664,0.00180552,3082.9,3082.2,0.95261337]
[1767990536869,0.25680552,3082.9,3082.4,0.95261337]
[1767990537599,0.00180552,3082.9,3082.4,0.95261337]
[1767990538104,0.00180552,3082.9,3082.5,0.95261337]
[1767990538992,0.001,3082.6,3082.5,0.95261337]
[1767990540006,0.00180552,3082.9,3082.4,6.48835082]
[1767990540304,0.00180552,3082.9,3082.4,4.06263892]
[1767990540510,0.94571038,3082.9,3082.4,4.06263892]
[1767990540914,0.00180552,3082.9,3082.4,4.06263892]
[1767990541079,0.00180552,3082.9,3082.5,0.95261337]
[1767990542511,0.00180552,3082.9,3082.6,3.24401479]
[1767990542727,0.0008036,3083.3,3082.6,8.26656966]
[1767990542912,0.2558036,3083.3,3082.7,0.95261337]
[1767990544419,0.68825069,3083.2,3082.7,0.95261337]
[1767990544727,0.7,3083.0,3082.7,0.95261337]
[1767990545890,0.7,3083.0,3082.7,4.1965167]
[1767990546102,0.7,3083.0,3082.8,0.91047987]
[1767990546406,0.2558036,3083.3,3082.8,0.91047987]
[1767990546594,0.68898799,3083.2,3082.8,4.15422678]
[1767990548222,0.68898799,3083.2,3082.9,0.91047987]
[1767990548415,0.0008036,3083.3,3082.9,0.91047987]
[1767990548823,0.68616457,3083.3,3082.9,0.91047987]
[1767990549138,0.0008036,3083.3,3082.9,0.91047987]
[1767990549895,0.68618738,3083.3,3082.9,0.91047987]
[1767990550302,0.001,3083.0,3082.9,0.91047987]
[1767990551118,0.001,3083.0,3082.9,4.15417898]
[1767990551417,0.001,3083.0,3082.9,4.89398586]
[1767990551780,1.65473271,3083.3,3082.9,3.98350599]
[1767990551921,0.0008036,3083.3,3082.9,3.24369911]
[1767990552533,0.0008036,3083.3,3082.9,3.2761361]
[1767990553440,0.0008036,3083.3,3083.0,0.91047987]
[1767990555132,0.96934893,3083.3,3082.6,3.2439527]
[1767990555337,0.96934893,3083.3,3082.5,0.91128547]
[1767990555536,0.96934893,3083.3,3082.7,3.24385866]
[1767990556344,0.2558036,3083.3,3082.9,3.24363467]
[1767990556544,0.2558036,3083.3,3082.9,3.24368623]
[1767990556836,0.2558036,3083.3,3082.8,4.15424769]
[1767990557337,0.2558036,3083.3,3082.8,0.91047987]
[1767990557708,0.2558036,3083.3,3082.7,3.2438556]
[1767990557908,0.0008036,3083.3,3082.8,7.43048158]
[1767990558110,0.0008036,3083.3,3082.9,0.91047987]
[1767990558310,0.0008036,3083.3,3083.0,0.03243593]
[1767990558511,0.68629138,3083.3,3083.0,0.03243593]
[1767990558848,0.96854533,3083.6,3083.0,0.9429158]
[1767990559140,0.96854533,3083.6,3083.1,7.39745725]
[1767990559306,0.255,3084.1,3083.2,0.74298932]
[1767990559508,0.96854533,3084.6,3083.7,0.91047987]
[1767990559721,0.255,3084.5,3083.7,0.91047987]
[1767990561323,0.255,3084.5,3083.8,3.24275244]
[1767990561624,0.255,3084.5,3083.9,0.91047987]
[1767990561824,0.70154924,3084.5,3083.9,0.91047987]
[1767990562025,0.96854533,3084.4,3083.6,3.24292079]
[1767990562545,0.96854533,3084.4,3083.5,4.15428608]
[1767990562843,1.66854533,3084.1,3083.5,3.24380621]
[1767990563214,0.96854533,3084.1,3083.5,3.24380621]
[1767990563966,0.96854533,3084.1,3083.5,0.00080464]
[1767990564751,0.96854533,3084.3,3083.5,0.91128451]
[1767990566010,0.96854533,3084.3,3083.5,4.15425366]
[1767990566919,0.96854533,3084.3,3083.5,3.24377379]
[1767990567124,0.96854533,3084.2,3083.5,0.00080464]
[1767990567330,1.00219317,3084.2,3083.5,0.00080464]
[1767990567642,0.96854533,3084.2,3083.5,0.00080464]
[1767990567848,1.66854533,3083.9,3083.5,0.00080464]
[1767990568012,0.255,3083.8,3083.5,0.00080464]
[1767990573170,0.7,3083.9,3083.5,0.95763762]
[1767990573675,0.7,3083.9,3083.5,0.95963762]
[1767990575564,0.7,3083.9,3083.5,4.20270065]
[1767990575772,0.7,3083.9,3083.5,4.94729543]
[1767990576532,0.7,3083.9,3083.5,0.74739942]
[1767990576732,0.7,3083.9,3083.5,0.00280464]
[1767990577961,0.99688597,3083.8,3083.1,3.24542969]
[1767990578162,0.99688597,3083.8,3083.1,4.20226267]
[1767990578957,0.99688597,3083.8,3083.2,3.24334155]
[1767990579163,0.70080464,3083.9,3083.2,4.20017453]
[1767990579562,0.70080464,3083.9,3083.4,0.95683298]
[1767990579747,0.70080464,3083.9,3083.5,0.95683298]
[1767990579748,0.255,3083.8,3083.5,0.95683298]
[1767990581252,0.255,3083.8,3083.6,0.95683298]
[1767990581831,0.00080464,3083.9,3083.7,0.95683298]
[1767990582456,3.24192314,3084.6,3083.6,3.24287914]
[1767990582457,0.99688597,3084.6,3083.8,0.95683298]
[1767990582659,0.255,3084.5,3083.9,0.95683298]
[1767990583437,0.255,3084.5,3083.8,0.74426749]
[1767990583861,0.255,3084.5,3083.8,1.70110047]
[1767990584169,0.255,3084.5,3083.5,0.00080472]
[1767990584170,0.99688597,3084.4,3083.5,3.24378991]
[1767990584464,0.99688597,3084.1,3083.5,0.00080472]
[1767990584835,1.03053381,3084.1,3083.5,0.00080472]
[1767990585036,0.99688597,3083.9,3083.5,0.00080472]
[1767990585235,1.03053381,3083.9,3083.5,0.00080472]
[1767990585882,0.99688597,3083.8,3083.5,0.00080472]
[1767990586175,0.99788597,3083.6,3083.5,0.00080472]
[1767990586472,0.99788597,3083.6,3083.1,0.002]
[1767990586681,0.255,3083.5,3083.1,0.002]
[1767990589764,0.255,3083.5,3082.9,0.00080368]
[1767990589765,6.64276425,3083.4,3082.9,0.00080368]
[1767990589944,1.64507202,3083.3,3082.9,0.00080368]
[1767990591141,1.64307202,3083.3,3082.9,0.00080368]
[1767990592066,0.68977643,3083.3,3082.9,0.00080368]
[1767990597661,6.64276425,3083.4,3082.9,0.00080368]
[1767990597856,6.64276425,3083.4,3083.2,0.002]
[1767990598378,0.95529559,3083.4,3083.2,0.002]
[1767990600682,0.95609927,3083.3,3082.5,4.16462981]
[1767990600885,0.95529559,3083.2,3082.5,0.92051798]
[1767990601553,0.44623093,3083.3,3082.8,0.91971238]
[1767990601881,0.00080368,3083.3,3082.8,0.91971238]
[1767990602970,0.9008251,3083.3,3082.5,0.0008056]
[1767990603751,0.9008251,3083.3,3082.5,0.97405179]
[1767990604186,0.9008251,3083.3,3082.5,0.0008056]
[1767990604386,0.90002142,3082.8,3082.1,4.21772727]
[1767990605059,0.2558056,3082.9,3082.2,1.00569053]
[1767990605792,0.2558056,3082.9,3082.3,0.97324619]
[1767990605980,0.2558056,3082.9,3082.5,0.97324619]
[1767990606185,0.65882938,3083.2,3082.5,0.97324619]
[1767990606186,0.00080368,3083.3,3082.8,0.97324619]
[1767990606367,0.00080368,3083.3,3082.9,0.97324619]
[1767990606988,0.00080368,3083.3,3083.0,0.97324619]
[1767990607291,0.001,3083.6,3083.1,0.97324619]
[1767990608097,0.62945375,3083.3,3083.1,0.97324619]
[1767990608503,0.57945375,3083.3,3083.2,0.97324619]
[1767990608701,0.00080472,3083.9,3083.4,0.97324619]
[1767990610309,0.90082614,3083.9,3083.1,3.24348649]
[1767990610509,0.90082614,3083.9,3083.2,0.42167327]
[1767990610807,0.93366926,3083.8,3082.9,0.42251516]
[1767990611006,0.90002142,3083.6,3082.9,0.00080376]
[1767990611604,0.03364784,3083.5,3082.9,0.00080376]
[1767990612806,1.15502142,3083.6,3082.9,0.97404995]
[1767990612807,0.255,3083.6,3082.9,0.97404995]
[1767990613669,0.255,3083.6,3083.0,0.97324619]
[1767990613870,0.255,3083.6,3083.2,0.97324619]
[1767990614308,0.255,3083.6,3083.1,0.66615186]
[1767990614599,4.43166547,3083.6,3082.9,0.00080376]
[1767990614788,1.15502142,3083.6,3082.9,0.00080376]
[1767990614990,0.255,3083.6,3082.9,0.97404995]
[1767990615209,0.00080472,3083.9,3083.1,0.97324619]
[1767990615600,0.00080472,3083.9,3083.3,0.97324619]
[1767990616917,0.00080472,3083.9,3083.4,0.97324619]
[1767990617104,0.00080472,3083.9,3083.5,0.42164464]
[1767990617842,0.90082614,3083.9,3082.9,0.00080376]
[1767990617989,0.90002142,3083.7,3082.9,0.00080376]
[1767990618312,0.90002142,3083.5,3082.9,0.00080376]
[1767990619731,3.24286662,3083.7,3082.9,0.97404995]
[1767990619732,0.90002142,3083.7,3082.9,0.97404995]
[1767990620524,0.00080472,3083.9,3082.9,0.97404995]
[1767990620831,4.14347418,3083.9,3083.0,1.00568212]
[1767990621138,0.43984742,3083.8,3083.0,1.00568212]
[1767990621444,1.33986884,3083.8,3083.0,4.24926256]
[1767990621797,0.90002142,3083.7,3083.0,3.27601637]
[1767990622122,0.90002142,3083.7,3083.0,0.03243593]
[1767990622500,0.43984742,3083.8,3083.0,1.00568212]
[1767990623132,1.33986884,3083.8,3083.0,1.00568212]
[1767990623627,3.24345276,3083.9,3083.1,0.97324619]
[1767990623628,0.00080472,3083.9,3083.1,0.97324619]
[1767990625596,0.00080472,3083.9,3083.1,4.21665815]
[1767990625818,0.7,3083.6,3083.2,0.97324619]
[1767990627843,0.7,3083.6,3083.1,3.24341196]
[1767990628133,0.7,3083.6,3083.2,4.21661146]
[1767990628456,0.00080472,3083.9,3083.2,5.03756802]
[1767990628728,0.00080472,3083.9,3083.3,1.00567897]
[1767990628904,0.00080472,3083.9,3083.3,0.97324619]
[1767990629307,0.0008068,3084.8,3083.2,10.55108881]
[1767990629308,0.0008068,3084.8,3083.9,0.97324619]
[1767990629833,0.0008068,3084.8,3084.2,0.97324619]
[1767990630132,0.0008068,3084.8,3084.4,0.97324619]
[1767990631326,3.49595122,3085.6,3084.8,0.97324619]
[1767990631327,0.255,3085.6,3084.8,0.97324619]
[1767990632036,0.255,3085.6,3084.8,4.21492561]
[1767990633214,0.255,3085.6,3084.8,0.97324619]
[1767990633404,0.255,3085.6,3084.9,0.42150185]
[1767990633604,0.95723157,3085.5,3084.6,3.24186336]
[1767990633805,0.95723157,3085.5,3084.5,3.24201653]
[1767990634943,0.95723157,3085.5,3084.4,0.00080688]
[1767990634944,0.92358373,3085.4,3084.4,0.00080688]
[1767990635238,0.92358373,3085.2,3084.4,0.00080688]
[1767990635443,6.48199102,3085.5,3084.4,0.00080688]
[1767990635444,0.92358373,3085.0,3084.4,0.00080688]
[1767990635805,0.92358373,3084.8,3084.4,0.00080688]
[1767990636006,0.03364784,3084.7,3084.4,0.00080688]
[1767990636236,0.95723157,3084.8,3084.4,0.00080688]
[1767990636451,0.45352413,3084.8,3084.4,0.00080688]
[1767990637332,0.41987629,3084.8,3084.4,0.00080688]
[1767990637569,3.24130867,3085.2,3084.4,0.00080688]
[1767990637570,0.92358373,3085.3,3084.4,0.98704382]
[1767990637856,0.255,3085.8,3084.6,0.98623694]
[1767990639042,0.255,3085.8,3084.6,1.01540138]
[1767990639875,0.255,3085.8,3084.8,0.98623694]
[1767990640030,0.000806,3086.0,3085.0,0.98623694]
[1767990640232,0.000806,3086.0,3085.1,0.98623694]
[1767990640441,0.000806,3086.0,3085.0,0.255]
[1767990640649,0.92438973,3086.0,3084.9,0.255]
[1767990641421,0.42538973,3086.0,3084.9,0.255]
[1767990641622,0.42538973,3086.0,3085.6,0.00080608]
[1767990642230,0.92358373,3085.9,3085.6,0.00080608]
[1767990642418,0.92358373,3085.9,3084.9,3.24156247]
[1767990643046,1.17858373,3085.9,3084.9,3.24156247]
[1767990643226,1.17858373,3085.9,3084.9,4.22779941]
[1767990643423,0.255,3085.9,3085.0,0.98623694]
[1767990643612,0.255,3085.9,3085.2,0.98623694]
[1767990643818,0.255,3085.9,3085.3,4.22741283]
[1767990644060,0.255,3085.9,3085.3,0.98623694]
[1767990644537,0.255,3085.9,3085.1,4.97451412]
[1767990644733,0.255,3085.9,3085.2,3.24125581]
[1767990644937,0.255,3085.9,3085.2,4.06284516]
[1767990645663,0.255,3085.9,3085.2,7.30412611]
[1767990646537,0.001,3085.7,3085.2,7.30412611]
[1767990646738,0.001,3085.7,3085.3,0.98623694]
[1767990648140,0.001,3085.7,3085.2,4.06279038]
[1767990649076,0.001,3085.7,3085.3,4.0702093]
[1767990649414,0.001,3085.7,3085.3,5.00022596]
[1767990649766,0.00080608,3086.0,3085.4,0.93001666]
[1767990650068,0.00080608,3086.0,3085.4,4.17106861]
[1767990650369,0.00080608,3086.0,3085.3,4.07016564]
[1767990650568,0.00080608,3086.0,3085.4,4.06518389]
[1767990651375,0.00080608,3086.0,3085.4,4.99520055]
[1767990652072,0.00080608,3086.0,3085.4,4.06518389]
[1767990652273,0.90134056,3086.0,3085.1,3.24132713]
[1767990652474,0.90134056,3086.0,3084.8,0.002]
[1767990652685,0.90053448,3085.9,3084.8,0.002]
[1767990652846,0.90053448,3085.7,3084.8,0.002]
[1767990653188,0.90053448,3085.7,3084.8,0.00078077]
[1767990653392,0.90053448,3085.5,3084.8,0.00078077]
[1767990654902,4.14160532,3085.4,3084.8,0.00078077]
[1767990655070,0.41416053,3085.3,3084.8,0.00078077]
[1767990655254,0.90053448,3085.2,3084.8,0.00078077]
[1767990655459,0.90053448,3085.1,3084.8,0.00078077]
[1767990656473,0.255,3085.2,3084.8,0.00078077]
[1767990657684,3.49628909,3085.2,3084.8,0.00078077]
[1767990657870,0.39104496,3085.1,3084.8,0.00078077]
[1767990659177,3.63244896,3085.1,3084.8,0.00078077]